bitfinex/quotes_SOLUSD_20250123
["timestamp","ask_amount","ask_price","bid_price","bid_amount"]
[1737620874349,0.03,248.36,248.28,7.47520982]
[1737620874653,0.03,248.36,248.27,0.063]
[1737620875454,81.53,248.36,248.27,23.839884]
[1737620875926,4.0265,248.35,248.27,23.839884]
[1737620878541,4.0265,248.35,248.27,27.867584]
[1737620879554,81.53,248.36,248.29,23.776884]
[1737620879851,0.03,248.36,248.33,23.776884]
[1737620880056,0.03,248.36,248.35,23.776884]
[1737620881451,0.03,248.36,248.35,27.803384]
[1737620882855,0.03,248.36,248.31,4.0272]
[1737620883356,0.03,248.36,248.29,4.0274]
[1737620883553,0.03,248.36,248.27,4.0907]
[1737620884548,0.03,248.36,248.27,0.063]
[1737620885552,0.03,248.36,248.27,4.0908]
[1737620886054,0.03,248.36,248.28,23.776884]
[1737620886556,0.03,248.36,248.28,4.0276]
[1737620887252,0.03,248.36,248.31,0.063]
[1737620887551,0.03,248.36,248.35,23.776884]
[1737620888858,0.03,248.36,248.35,27.803384]
[1737620889759,0.03,248.36,248.35,39.47166804]
[1737620895664,0.03,248.36,248.35,27.803384]
[1737620899261,0.03,248.36,248.35,40.07551447]
[1737620901559,0.03,248.44,248.38,20.0]
[1737620901854,0.03,248.44,248.43,35.44516804]
[1737620902458,0.03,248.44,248.43,347.44516804]
[1737620903359,0.03,248.44,248.43,35.44516804]
[1737620903660,0.03,248.44,248.43,39.47036804]
[1737620907864,0.03,248.44,248.43,24.0252]
[1737620908169,0.03,248.44,248.43,4.0252]
[1737620909266,0.03,248.44,248.42,23.776884]
[1737620909741,0.03,248.44,248.41,4.0254]
[1737620909742,6.1596,248.44,248.41,4.0254]
[1737620909947,6.1596,248.44,248.38,11.49214028]
[1737620910139,6.1596,248.44,248.4,7.46614028]
[1737620910140,0.03,248.44,248.4,7.46614028]
[1737620910552,0.03,248.44,248.41,23.776884]
[1737620911567,0.03,248.44,248.4,4.0256]
[1737620911777,81.5,248.43,248.32,11.49314028]
[1737620911945,83.0467,248.43,248.32,11.49314028]
[1737620912267,83.0467,248.43,248.32,11.55614028]
[1737620912469,6.1296,248.42,248.32,0.063]
[1737620912660,81.5,248.41,248.32,0.063]
[1737620913877,4.0257,248.4,248.32,0.063]
[1737620914873,81.5,248.38,248.32,0.063]
[1737620915078,81.5,248.37,248.32,0.063]
[1737620915870,7.9321,248.36,248.32,0.063]
[1737620918377,7.9321,248.36,248.32,4.0899]
[1737620918675,7.9321,248.36,248.32,0.063]
[1737620919655,81.5,248.34,248.32,0.063]
[1737620919860,81.5,248.33,248.32,0.063]
[1737620920165,20.0,248.33,248.32,0.063]
[1737620920561,21.0,248.33,248.32,0.063]
[1737620921359,24.0268,248.33,248.32,0.063]
[1737620925466,20.0,248.33,248.32,0.063]
[1737620925768,7.9321,248.36,248.32,0.063]
[1737620926357,0.03,248.41,248.32,4.09]
[1737620926554,0.03,248.41,248.32,15.76874393]
[1737620930583,81.5,248.39,248.32,15.76874393]
[1737620931069,81.5,248.39,248.34,15.70544393]
[1737620931384,0.03,248.41,248.36,11.67874393]
[1737620932277,0.03,248.41,248.34,15.70544393]
[1737620938680,0.03,248.41,248.33,4.0268]
[1737620939972,81.5,248.4,248.32,0.063]
[1737620940684,81.5,248.39,248.32,0.063]
[1737620942279,81.5,248.39,248.32,4.09]
[1737620942783,81.5,248.39,248.33,23.776884]
[1737620944879,81.5,248.39,248.34,4.0267]
[1737620945499,0.03,248.41,248.34,4.0267]
[1737620946802,0.03,248.41,248.36,11.67874393]
[1737620948199,0.03,248.41,248.38,11.67874393]
[1737620948398,0.03,248.41,248.34,11.67874393]
[1737620948603,0.03,248.41,248.33,4.0898]
[1737620948800,81.5,248.4,248.33,0.063]
[1737620949377,81.5,248.39,248.33,0.063]
[1737620949583,81.5,248.38,248.33,0.063]
[1737620949881,87.577,248.38,248.33,0.063]
[1737620950081,81.5,248.37,248.33,0.063]
[1737620950282,4.0264,248.36,248.33,0.063]
[1737620952594,81.5,248.37,248.33,0.063]
[1737620952799,85.5263,248.37,248.33,0.063]
[1737620953006,81.5,248.37,248.33,0.063]
[1737620953176,0.03,248.41,248.33,0.063]
[1737620953380,0.03,248.41,248.33,15.76854393]
[1737620954699,0.03,248.41,248.34,27.803484]
[1737620955005,0.03,248.41,248.35,11.67874393]
[1737620955788,0.03,248.41,248.36,4.0264]
[1737620957390,0.03,248.41,248.37,11.67874393]
[1737620958281,0.03,248.41,248.36,4.0264]
[1737620961890,0.03,248.41,248.36,4.0894]
[1737620963211,0.03,248.41,248.37,11.67874393]
[1737620964616,0.03,248.41,248.37,23.776884]
[1737620965913,0.03,248.41,248.37,15.70494393]
[1737620969798,0.03,248.41,248.37,4.0262]
[1737620983649,0.03,248.41,248.39,4.0259]
[1737620989250,0.03,248.41,248.37,4.0262]
[1737620997154,0.03,248.41,248.36,0.063]
[1737620997155,81.5,248.4,248.36,0.063]
[1737620999257,81.5,248.4,248.36,11.55636773]
[1737621001940,0.03,248.41,248.36,11.55636773]
[1737621003039,0.03,248.41,248.38,7.46706773]
[1737621003239,0.03,248.41,248.4,7.46706773]
[1737621003453,0.03,248.41,248.4,31.24395173]
[1737621003652,0.03,248.41,248.4,61.11222265]
[1737621003857,0.03,248.41,248.4,61.71581829]
[1737621004643,0.03,248.41,248.4,31.84754737]
[1737621004844,0.03,248.41,248.4,65.74151829]
[1737621005457,0.03,248.41,248.4,35.87324737]
[1737621005843,0.03,248.41,248.4,35.26965173]
[1737621007167,0.03,248.41,248.4,11.49276773]
[1737621007462,0.03,248.41,248.4,20.0]
[1737621007659,0.03,248.41,248.36,7.53006773]
[1737621007859,0.03,248.41,248.36,11.55626773]
[1737621008071,0.03,248.41,248.36,0.063]
[1737621008870,20.0,248.37,248.36,0.063]
[1737621009373,20.0,248.34,248.33,0.063]
[1737621009855,44.776884,248.34,248.33,0.063]
[1737621010236,44.776884,248.34,248.27,0.063]
[1737621010237,24.776884,248.32,248.27,0.063]
[1737621011335,28.803884,248.32,248.27,0.063]
[1737621013365,18.2516,248.37,248.27,0.063]
[1737621013366,7.9267,248.35,248.27,0.063]
[1737621014061,20.0,248.32,248.27,0.063]
[1737621014965,20.0,248.33,248.27,0.063]
[1737621015157,23.776884,248.35,248.27,0.063]
[1737621015866,20.0,248.33,248.27,4.0908]
[1737621016043,81.5,248.36,248.29,4.0274]
[1737621016467,81.5,248.34,248.31,4.0901]
[1737621016661,8.186,248.37,248.31,4.0901]
[1737621016863,6.5369,248.37,248.31,4.0901]
[1737621017073,81.5,248.4,248.33,11.68624544]
[1737621017370,3.93,248.41,248.35,11.68624544]
[1737621017745,3.93,248.41,248.37,11.68624544]
[1737621017938,0.03,248.41,248.37,11.68624544]
[1737621018248,0.03,248.44,248.4,23.776884]
[1737621018464,0.03,248.44,248.43,11.68624544]
[1737621019273,0.03,248.44,248.43,15.71144544]
[1737621021987,0.03,248.44,248.39,15.71214544]
[1737621023566,0.03,248.44,248.41,11.68624544]
[1737621025696,0.03,248.44,248.42,4.0254]
[1737621027387,0.03,248.44,248.39,11.68624544]
[1737621027585,0.03,248.44,248.39,15.71194544]
[1737621030200,0.03,248.44,248.39,4.0257]
[1737621030498,0.03,248.44,248.37,15.71234544]
[1737621031892,0.03,248.44,248.4,23.776884]
[1737621032080,0.03,248.44,248.41,11.68624544]
[1737621033183,0.03,248.44,248.42,4.0254]
[1737621033564,0.03,248.44,248.43,11.68624544]
[1737621034784,0.03,248.44,248.43,39.48832944]
[1737621037670,0.03,248.44,248.43,40.09191131]
[1737621038776,0.03,248.46,248.44,23.776884]
[1737621038977,0.0001,248.47,248.46,43.776884]
[1737621039383,0.0001,248.47,248.46,360.801584]
[1737621039600,0.03,248.56,248.5,55.46312944]
[1737621039773,0.03,248.56,248.5,56.06649719]
[1737621039967,0.03,248.56,248.55,11.68624544]
[1737621040287,0.03,248.58,248.56,23.776884]
[1737621040487,0.03,248.61,248.6,20.0]
[1737621040687,0.03,248.61,248.6,55.46312944]
[1737621041589,0.03,248.61,248.6,59.48562944]
[1737621042972,6.5488,248.73,248.65,23.776884]
[1737621043166,6.5488,248.73,248.65,35.46312944]
[1737621043893,6.5488,248.73,248.65,39.48482944]
[1737621045299,6.5488,248.73,248.65,19.25555227]
[1737621045492,20.0,248.79,248.65,19.85859042]
[1737621045799,0.0001,248.66,248.65,45.63547442]
[1737621046692,0.0001,248.66,248.65,44.63547442]
[1737621046899,0.0001,248.66,248.65,40.08786759]
[1737621048387,0.0001,248.66,248.65,352.08786759]
[1737621048602,0.0001,248.66,248.65,351.48482944]
[1737621049093,0.0001,248.66,248.65,39.48482944]
[1737621049286,0.0001,248.66,248.65,27.798584]
[1737621050069,0.0001,248.66,248.64,11.68624544]
[1737621050806,0.0001,248.66,248.64,15.70794544]
[1737621051006,0.0001,248.66,248.64,11.68624544]
[1737621052704,0.0001,248.66,248.65,23.776884]
[1737621058904,0.0001,248.66,248.63,0.063]
[1737621062089,0.0001,248.66,248.64,15.70804544]
[1737621062509,0.0001,248.66,248.65,23.776884]
[1737621063217,0.0001,248.66,248.64,15.70804544]
[1737621063829,0.0001,248.66,248.64,11.68624544]
[1737621064033,0.0001,248.66,248.63,0.063]
[1737621064520,0.0001,248.66,248.64,11.68624544]
[1737621065821,0.0001,248.66,248.65,4.0217]
[1737621067095,0.0001,248.66,248.64,11.68624544]
[1737621067311,0.0001,248.66,248.63,0.063]
[1737621075917,0.0001,248.66,248.64,11.68624544]
[1737621077806,0.0001,248.66,248.65,4.0217]
[1737621078004,0.0001,248.66,248.65,27.798584]
[1737621078213,0.0001,248.66,248.65,28.40166507]
[1737621079534,0.0001,248.66,248.65,341.77144243]
[1737621079831,6.6391,248.81,248.73,20.0]
[1737621080133,6.6391,248.81,248.78,11.68624544]
[1737621080335,0.03,248.91,248.82,20.0]
[1737621080630,0.03,248.91,248.9,11.68624544]
[1737621082632,0.03,248.91,248.88,11.68624544]
[1737621082819,0.03,248.91,248.86,11.68624544]
[1737621083218,0.03,248.91,248.84,11.68624544]
[1737621083420,0.03,248.91,248.82,11.68624544]
[1737621083621,0.03,248.91,248.84,11.68624544]
[1737621083804,20.0,248.86,248.78,11.68624544]
[1737621084010,1.6307,248.85,248.76,11.68624544]
[1737621084334,1.6307,248.85,248.7,11.68624544]
[1737621084511,20.0,248.84,248.83,7.7573767]
[1737621085133,43.776884,248.84,248.83,7.7573767]
[1737621085653,20.0,248.8,248.69,2.98360642]
[1737621086334,20.0,248.8,248.7,2.98360642]
[1737621087342,20.0,248.8,248.7,14.66985186]
[1737621087738,20.0,248.8,248.71,2.98360642]
[1737621088043,81.5,248.83,248.71,2.98360642]
[1737621088250,4.0192,248.81,248.72,11.68624544]
[1737621088649,4.0192,248.81,248.71,2.98360642]
[1737621089070,4.0192,248.81,248.7,11.68624544]
[1737621089841,20.0,248.8,248.7,11.68624544]
[1737621090141,6.061,248.79,248.69,11.68624544]
[1737621090564,6.061,248.79,248.67,11.68624544]
[1737621091153,4.0196,248.78,248.67,11.68624544]
[1737621092242,4.0196,248.78,248.68,2.98804613]
[1737621093452,81.5,248.77,248.69,11.68624544]
[1737621093850,6.061,248.79,248.68,2.98804613]
[1737621093851,6.061,248.79,248.71,11.68624544]
[1737621095678,81.5,248.78,248.67,11.68624544]
[1737621096742,4.0197,248.77,248.67,11.68624544]
[1737621097145,4.0197,248.77,248.66,23.776884]
[1737621097146,4.0197,248.77,248.69,11.68624544]
[1737621097345,4.0197,248.77,248.67,11.68624544]
[1737621097556,81.5,248.71,248.63,0.063]
[1737621097777,6.2859,248.67,248.63,0.063]
[1737621098842,4.0215,248.66,248.63,0.063]
[1737621099479,6.2859,248.67,248.63,0.063]
[1737621099648,10.3073,248.67,248.63,0.063]
[1737621101270,81.5,248.66,248.63,0.063]
[1737621102472,4.0217,248.65,248.63,0.063]
[1737621104471,81.5,248.66,248.63,0.063]
[1737621107376,85.5215,248.66,248.63,0.063]
[1737621109373,81.5,248.66,248.63,0.063]
[1737621110873,85.5216,248.66,248.63,0.063]
[1737621111583,81.5,248.66,248.63,0.063]
[1737621111962,85.5215,248.66,248.63,0.063]
[1737621113079,81.5,248.65,248.63,0.063]
[1737621113260,27.798684,248.64,248.63,0.0001]
[1737621113465,30.416084,248.64,248.63,0.0001]
[1737621114288,20.0,248.6,248.44,20.0]
[1737621114497,20.0,248.6,248.43,1.6197]
[1737621114683,20.0,248.6,248.43,5.6448]
[1737621114870,20.0,248.56,248.41,4.0884]
[1737621115193,4.0234,248.54,248.42,20.0]
[1737621115371,6.6506,248.55,248.44,1.34464342]
[1737621115773,20.0,248.56,248.44,1.34464342]
[1737621116172,7.9029,248.58,248.44,1.34464342]
[1737621116594,7.9029,248.58,248.45,4.0249]
[1737621119101,81.5,248.57,248.46,20.0]
[1737621119282,81.5,248.57,248.47,23.776884]
[1737621120099,81.5,248.65,248.51,23.776884]
[1737621120674,81.5,248.65,248.49,23.776884]
[1737621120874,81.5,248.65,248.53,23.776884]
[1737621121089,81.5,248.65,248.54,4.0234]
[1737621122787,85.5217,248.65,248.54,4.0234]
[1737621124001,85.5217,248.65,248.51,20.0]
[1737621124900,20.0,248.62,248.49,27.801184]
[1737621125209,24.0223,248.62,248.49,27.801184]
[1737621125703,81.5,248.61,248.49,4.0243]
[1737621126191,81.5,248.61,248.5,23.776884]
[1737621126499,81.5,248.67,248.5,23.776884]
[1737621126702,20.0,248.64,248.5,23.776884]
[1737621127006,4.0217,248.66,248.53,20.0]
[1737621127304,0.03,248.65,248.54,4.0234]
[1737621134107,0.03,248.65,248.55,23.776884]
[1737621134319,0.03,248.65,248.56,0.60333252]
[1737621134508,0.03,248.65,248.58,23.776884]
[1737621136812,0.03,248.65,248.59,1.34512897]
[1737621136992,0.03,248.65,248.6,4.0225]
[1737621137895,0.03,248.65,248.61,23.776884]
[1737621138222,0.03,248.65,248.64,43.776884]
[1737621138390,0.03,248.69,248.65,1.5207]
[1737621138595,0.03,248.69,248.66,23.776884]
[1737621139000,0.03,248.69,248.67,4.0213]
[1737621139206,0.03,248.69,248.68,20.0]
[1737621139408,0.03,248.69,248.68,43.776884]
[1737621139701,0.03,248.77,248.73,23.776884]
[1737621140713,0.03,248.77,248.76,20.0]
[1737621141119,0.03,248.77,248.76,47.796784]
[1737621141817,0.03,248.81,248.77,23.776884]
[1737621142022,0.03,248.81,248.77,25.357484]
[1737621143227,0.03,248.81,248.78,4.0196]
[1737621143728,0.03,248.81,248.73,4.0204]
[1737621144101,0.03,248.81,248.71,4.0206]
[1737621144303,0.03,248.81,248.67,4.0213]
[1737621144832,0.03,248.81,248.69,20.0]
[1737621145005,0.03,248.81,248.67,4.0213]
[1737621145899,0.03,248.81,248.69,20.0]
[1737621146327,20.03,248.81,248.66,1.5806]
[1737621146507,20.03,248.81,248.68,4.0212]
[1737621147722,4.0192,248.8,248.68,4.0212]
[1737621154370,24.0192,248.8,248.68,4.0212]
[1737621154532,24.0192,248.8,248.67,24.0213]
[1737621155556,4.0196,248.78,248.67,24.0213]
[1737621155946,4.0196,248.78,248.67,4.0213]
[1737621156862,4.0196,248.78,248.64,23.776884]
[1737621157043,4.0196,248.78,248.65,4.0217]
[1737621159358,81.5,248.77,248.65,4.0217]
[1737621159557,4.0199,248.76,248.65,4.0217]
[1737621160856,4.0199,248.76,248.63,4.022]
[1737621161063,4.0199,248.76,248.62,20.0]
[1737621161261,7.6547,248.75,248.62,20.0]
[1737621162357,81.5,248.74,248.61,23.776884]
[1737621163147,4.0204,248.73,248.61,4.0222]
[1737621163340,4.0204,248.73,248.63,0.063]
[1737621164038,14.0714,248.73,248.63,0.063]
[1737621165170,81.5,248.69,248.63,0.063]
[1737621165351,83.0704,248.67,248.63,0.063]
[1737621165545,20.0,248.64,248.63,0.063]
[1737621166456,20.0,248.64,248.58,0.063]
[1737621166457,45.776884,248.64,248.58,0.063]
[1737621166645,44.776884,248.64,248.58,0.063]
[1737621166854,43.776884,248.64,248.58,0.063]
[1737621167057,4.022,248.63,248.58,0.063]
[1737621171272,20.0,248.59,248.58,0.063]
[1737621172145,81.5,248.62,248.58,0.063]
[1737621173571,81.5,248.62,248.58,4.0858]
[1737621175565,1.5704,248.67,248.58,4.0858]
[1737621178778,87.5843,248.68,248.58,4.0858]
[1737621180172,81.5,248.67,248.58,4.0858]
[1737621180681,85.5214,248.67,248.58,0.063]
[1737621180864,81.5,248.63,248.58,0.063]
[1737621181453,81.5,248.61,248.58,0.063]
[1737621182071,81.5,248.6,248.58,0.063]
[1737621182380,85.5226,248.6,248.58,0.063]
[1737621183954,20.0,248.56,248.47,0.063]
[1737621184154,4.0234,248.54,248.47,0.063]
[1737621184371,81.5,248.55,248.47,0.063]
[1737621184584,81.5,248.55,248.47,4.0876]
[1737621184758,81.5,248.55,248.47,0.063]
[1737621184961,85.5234,248.55,248.47,0.063]
[1737621185366,105.276884,248.54,248.47,0.063]
[1737621185560,81.5,248.5,248.47,0.063]
[1737621188370,81.5,248.57,248.47,4.0875]
[1737621188884,81.5,248.57,248.47,24.0875]
[1737621190487,85.5231,248.57,248.47,0.063]
[1737621191788,20.0,248.54,248.47,0.063]
[1737621191975,81.5,248.52,248.47,0.063]
[1737621192381,81.5,248.52,248.47,4.0875]
[1737621193384,81.5,248.52,248.47,0.063]
[1737621193694,81.5,248.51,248.47,0.063]
[1737621194496,85.5241,248.5,248.47,0.063]
[1737621194886,81.5,248.49,248.47,0.063]
[1737621196615,4.0244,248.48,248.47,0.063]
[1737621198814,24.0244,248.48,248.47,0.063]
[1737621199112,32.1262,248.48,248.47,0.0001]
[1737621199511,55.903084,248.48,248.47,0.0001]
[1737621199719,24.776884,248.42,248.41,0.063]
[1737621199903,28.636884,248.42,248.41,0.063]
[1737621200209,28.636884,248.42,248.41,0.0001]
[1737621200210,36.921184,248.42,248.41,0.0001]
[1737621200384,25.776884,248.4,248.38,0.0001]
[1737621200584,43.776884,248.39,248.38,0.0001]
[1737621200787,23.776884,248.39,248.38,0.0001]
[1737621201001,2.0,248.4,248.38,0.0001]
[1737621201202,24.0259,248.39,248.38,0.0001]
[1737621202291,24.0259,248.39,248.31,0.063]
[1737621202292,2.0,248.34,248.33,0.0001]
[1737621202614,20.0,248.28,248.27,0.063]
[1737621202823,43.776884,248.28,248.27,0.063]
[1737621203025,20.0,248.28,248.27,0.063]
[1737621203315,4.0277,248.28,248.27,0.063]
[1737621203728,25.0277,248.28,248.27,0.063]
[1737621204013,30.4428,248.28,248.27,0.063]
[1737621204389,54.219684,248.28,248.27,0.063]
[1737621205008,55.219684,248.28,248.27,0.063]
[1737621205514,54.219684,248.28,248.27,0.063]
[1737621206290,55.219684,248.28,248.27,0.063]
[1737621206917,56.219684,248.28,248.27,0.063]
[1737621209212,55.219684,248.28,248.27,0.063]
[1737621209420,56.219684,248.28,248.27,0.063]
[1737621211906,57.803284,248.28,248.27,0.063]
[1737621213420,56.803284,248.28,248.27,0.063]
[1737621213807,57.803284,248.28,248.27,0.063]
[1737621215418,10.4428,248.28,248.27,0.063]
[1737621215622,17.7438,248.34,248.27,0.063]
[1737621215918,7.9068,248.33,248.27,0.063]
[1737621216492,4.0266,248.35,248.27,0.063]
[1737621216696,7.9066,248.35,248.27,0.063]
[1737621216897,81.5,248.32,248.27,4.0908]
[1737621217599,81.5,248.32,248.27,0.063]
[1737621220102,20.0,248.29,248.27,0.063]
[1737621221207,81.5,248.32,248.27,0.063]
[1737621223816,81.5,248.31,248.27,4.0907]
[1737621225629,81.53,248.31,248.27,4.0907]
[1737621225832,81.53,248.31,248.27,0.063]
[1737621226636,81.5,248.3,248.27,0.063]
[1737621227507,20.0,248.28,248.27,0.063]
[1737621227707,24.0277,248.28,248.27,0.063]
[1737621228538,20.0,248.28,248.27,0.063]
[1737621229831,81.5,248.3,248.27,0.063]
[1737621230639,81.5,248.29,248.27,0.063]
[1737621233142,85.5275,248.29,248.27,0.063]
[1737621235137,81.5,248.29,248.27,0.063]
[1737621235918,81.5,248.29,248.27,4.0908]
[1737621237040,0.03,248.31,248.27,4.0908]
[1737621240620,0.03,248.31,248.27,0.063]
[1737621241730,81.5,248.29,248.27,0.063]
[1737621244943,85.5275,248.29,248.27,0.063]
[1737621245525,81.5,248.28,248.27,0.063]
[1737621246140,85.5277,248.28,248.27,0.063]
[1737621249238,27.804584,248.28,248.27,0.063]
[1737621250461,27.804584,248.28,248.27,0.0001]
[1737621252644,1.0,248.18,248.15,0.063]
[1737621252842,1.0,248.16,248.15,0.0001]
[1737621253147,4.86,248.17,248.11,0.063]
[1737621253148,24.776884,248.13,248.11,0.0001]
[1737621253343,24.776884,248.12,248.11,0.0001]
[1737621253842,23.776884,248.12,248.11,0.0001]
[1737621254419,1.0,248.15,248.11,0.0001]
[1737621254622,2.0,248.16,248.11,0.0001]
[1737621254838,23.776884,248.13,248.11,0.0001]
[1737621255646,23.776884,248.14,248.11,0.0001]
[1737621255831,20.0,248.12,248.11,0.0001]
[1737621257026,1.0,248.13,248.11,0.0001]
[1737621257231,24.0303,248.12,248.11,0.0001]
[1737621259560,48.807184,248.12,248.11,0.0001]
[1737621259853,50.326284,248.12,248.11,0.0001]
[1737621260063,49.326284,248.12,248.11,0.0001]
[1737621261244,47.807184,248.12,248.11,0.0001]
[1737621261934,54.866384,248.12,248.11,0.0001]
[1737621262151,53.866384,248.12,248.11,0.0001]
[1737621263061,47.807184,248.12,248.11,0.0001]
[1737621263263,51.667184,248.12,248.11,0.0001]
[1737621265254,4.0303,248.12,248.11,0.0001]
[1737621265533,7.8896,248.16,248.11,0.0001]
[1737621265863,20.0,248.13,248.11,0.0001]
[1737621266631,4.0299,248.14,248.11,0.0001]
[1737621267360,20.0,248.12,248.11,0.0001]
[1737621269060,4.0303,248.12,248.11,0.0001]
[1737621269240,4.0303,248.12,248.08,0.063]
[1737621269241,4.0303,248.12,247.87,138.70474492]
[1737621269441,4.0303,248.12,247.87,138.1]
[1737621269660,4.0303,248.12,247.88,0.60475274]
[1737621269969,81.5,248.11,247.88,0.60475274]
[1737621270179,85.5305,248.11,247.88,0.60475274]
[1737621270469,85.5305,248.11,247.94,1.0]
[1737621271172,85.5305,248.11,248.03,4.0317]
[1737621271976,85.5305,248.11,248.02,10.4033]
[1737621272276,81.5,248.1,248.02,10.4033]
[1737621273465,81.5,248.1,248.02,9.9033]
[1737621274272,0.063,248.15,248.03,23.776884]
[1737621274460,0.063,248.15,248.07,23.776884]
[1737621274854,0.063,248.15,248.1,25.327684]
[1737621276180,0.063,248.15,248.11,4.0304]
[1737621276477,0.063,248.15,248.14,50.102484]
[1737621276777,81.5,248.25,248.15,23.776884]
[1737621277274,81.5,248.25,248.15,335.776884]
[1737621277660,81.5,248.25,248.15,312.0]
[1737621277866,81.5,248.25,248.14,26.3256]
[1737621278174,85.5283,248.25,248.12,4.0301]
[1737621278479,81.5,248.24,248.1,1.5508]
[1737621278648,81.5,248.24,248.1,21.5508]
[1737621278852,81.5,248.23,248.1,1.5508]
[1737621279084,81.5,248.23,248.1,0.5508]
[1737621279576,81.5,248.23,248.1,4.5814]
[1737621280474,81.5,248.23,248.08,4.0308]
[1737621280475,20.0,248.2,248.08,4.0308]
[1737621280681,81.5,248.19,248.08,4.0308]
[1737621280888,81.5,248.15,248.03,4.0317]
[1737621281385,81.5,248.15,248.03,24.0317]
[1737621281683,81.5,248.14,248.01,4.032]
[1737621281866,81.5,248.14,248.03,20.0]
[1737621282678,85.5302,248.13,248.01,4.032]
[1737621283168,81.5,248.13,248.01,4.032]
[1737621283757,81.5,248.13,248.02,0.03]
[1737621284172,81.5,248.13,248.02,23.806884]
[1737621284570,81.5,248.13,248.03,4.0317]
[1737621285278,81.5,248.13,248.03,3.5317]
[1737621286695,81.5,248.13,248.04,23.776884]
[1737621286902,81.5,248.13,248.07,20.0]
[1737621288300,81.5,248.13,248.08,4.0309]
[1737621288614,81.5,248.13,248.03,10.0794]
[1737621288777,81.5,248.13,248.04,4.0316]
[1737621289998,81.5,248.12,248.04,4.0316]
[1737621291602,81.5,248.12,248.03,10.0794]
[1737621291970,81.46,248.12,248.04,23.776884]
[1737621293075,81.46,248.12,248.05,4.0314]
[1737621295800,81.46,248.12,248.06,23.776884]
[1737621296109,0.063,248.15,248.06,23.776884]
[1737621296806,20.063,248.15,248.07,4.0311]
[1737621296982,0.063,248.15,248.07,4.0311]
[1737621298215,0.063,248.15,248.08,23.776884]
[1737621299902,0.063,248.15,248.1,23.776884]
[1737621301207,0.063,248.15,248.1,335.776884]
[1737621301379,0.063,248.15,248.14,43.776884]
[1737621301579,0.0001,248.15,248.14,43.776884]
[1737621301888,0.0001,248.15,248.14,44.776884]
[1737621302086,0.0001,248.15,248.14,43.776884]
[1737621302709,0.0001,248.15,248.14,44.776884]
[1737621303005,0.0001,248.15,248.14,46.38110012]
[1737621303422,0.0001,248.15,248.14,50.41100012]
[1737621304108,0.0001,248.15,248.14,48.806784]
[1737621304284,0.0001,248.15,248.14,47.806784]
[1737621304487,0.0001,248.15,248.14,24.0299]
[1737621304809,0.0001,248.15,248.14,316.0299]
[1737621305107,0.0001,248.15,248.14,4.0299]
[1737621305402,0.0001,248.15,248.14,27.806784]